fUSD/lending_fUSD_20260627
["ID","MTS","AMOUNT","RATE_DAILY","PERIOD"]
[426536813,1782563433000,-500.0,0.00012525,2]
[426536815,1782563433000,-500.0,0.00012525,2]
[426536811,1782563433000,-500.0,0.00012525,2]
[426536816,1782563433000,-500.0,0.00012525,2]
[426536814,1782563433000,-500.0,0.00012525,2]
[426536825,1782563433000,-764.77933751,0.00012526,2]
[426536822,1782563433000,-19622.80116548,0.00012526,2]
[426536819,1782563433000,-532.52895479,0.00012525,2]
[426536824,1782563433000,-1254.41808677,0.00012526,2]
[426536821,1782563433000,-117613.72252994,0.00012526,2]
[426536823,1782563433000,-129924.51608381,0.00012526,2]
[426536820,1782563433000,-1173840.28992202,0.00012526,2]
[426536818,1782563433000,-500.0,0.00012525,2]
[426536817,1782563433000,-500.0,0.00012525,2]
[426536829,1782563437000,-1148.53642385,0.00012526,2]
[426536827,1782563437000,-214.96618774,0.00012516,2]
[426536828,1782563437000,-10783.07907689,0.00012526,2]
[426536835,1782563440000,-152.0,0.00012526,2]
[426536836,1782563440000,-152.0,0.00012526,2]
[426536834,1782563440000,-45047.85737373,0.00012526,2]
[426536837,1782563440000,-166.0,0.00012526,2]
[426536838,1782563440000,-5615.4629,0.00012527,2]
[426536839,1782563440000,-2500.0,0.00012527,2]
[426536843,1782563440000,-271.28599115,0.00012527,2]
[426536849,1782563440000,-224433.63378121,0.00012627,2]
[426536844,1782563440000,-5264.563,0.00012527,2]
[426536841,1782563440000,-152.0,0.00012527,2]
[426536845,1782563440000,-508.883,0.00012527,2]
[426536842,1782563440000,-152.0,0.00012527,2]
[426536846,1782563440000,-321.53934982,0.00012555,2]
[426536847,1782563440000,-1500.0,0.000126,4]
[426536840,1782563440000,-152.00000001,0.00012527,2]
[426536848,1782563440000,-396.34298948,0.000126,2]
[426536853,1782563442000,-1215.37608533,0.00012627,2]
[426536856,1782563443000,-506.90260785,0.00012627,2]
[426536857,1782563445000,-2724.59779161,0.00012426,2]
[426536860,1782563446000,-5090.2948443,0.00012627,2]
[426536859,1782563446000,-52823.16527023,0.00012627,2]
[426536858,1782563446000,-8646.60820839,0.00012426,2]
[426536862,1782563577000,500.0,0.00037418,120]
[426536863,1782563578000,500.0,0.00037418,120]
[426536866,1782563579000,500.0,0.00037418,120]
[426536865,1782563579000,500.0,0.00037418,120]
[426536864,1782563579000,500.0,0.00037418,120]
[426536868,1782563580000,641.29391302,0.00037418,120]
[426536867,1782563580000,500.0,0.00037418,120]
[426536870,1782563590000,500.0,0.00037418,120]
[426536869,1782563590000,500.0,0.00037418,120]
[426536872,1782563590000,506.11966822,0.00037418,120]
[426536871,1782563590000,500.0,0.00037418,120]
[426536874,1782564087000,1000.0,0.00037425,120]
[426536875,1782564121000,500.0,0.00037425,120]
[426536878,1782564122000,500.0,0.00037425,120]
[426536877,1782564122000,500.0,0.00037425,120]
[426536876,1782564122000,500.0,0.00037425,120]
[426536881,1782564123000,500.0,0.00037425,120]
[426536880,1782564123000,500.0,0.00037425,120]
[426536879,1782564123000,500.0,0.00037425,120]
[426536884,1782564124000,500.0,0.00037425,120]
[426536883,1782564124000,500.0,0.00037425,120]
[426536882,1782564124000,500.0,0.00037425,120]
[426536885,1782564125000,500.0,0.00037425,120]
[426536886,1782564125000,500.0,0.00037425,120]
[426536887,1782564125000,500.0,0.00037425,120]
[426536890,1782564126000,500.0,0.00037425,120]
[426536889,1782564126000,500.0,0.00037425,120]
[426536888,1782564126000,500.0,0.00037425,120]
[426536894,1782564127000,500.0,0.00037425,120]
[426536893,1782564127000,500.0,0.00037425,120]
[426536892,1782564127000,500.0,0.00037425,120]
[426536891,1782564127000,500.0,0.00037425,120]
[426536897,1782564128000,329.68022241,0.00037425,120]
[426536896,1782564128000,500.0,0.00037425,120]
[426536895,1782564128000,500.0,0.00037425,120]
[426536898,1782564138000,174.47,9.319e-05,2]
[426536900,1782564188000,500.0,0.00037425,120]
[426536901,1782564188000,500.0,0.00037425,120]
[426536902,1782564188000,500.0,0.00037425,120]
[426536905,1782564189000,500.0,0.00037425,120]
[426536904,1782564189000,500.0,0.00037425,120]
[426536903,1782564189000,500.0,0.00037425,120]
[426536908,1782564190000,500.0,0.00037425,120]
[426536907,1782564190000,500.0,0.00037425,120]
[426536906,1782564190000,500.0,0.00037425,120]
[426536909,1782564191000,321.03488776,0.00037425,120]
[426536912,1782564228000,10000.0,0.0001,2]
[426536910,1782564228000,2922.16050213,0.0001,2]
[426536913,1782564228000,10000.0,0.0001,2]
[426536916,1782564228000,10000.0,0.0001,2]
[426536914,1782564228000,10000.0,0.0001,2]
[426536917,1782564228000,10000.0,0.0001,2]
[426536911,1782564228000,10000.0,0.0001,2]
[426536915,1782564228000,10000.0,0.0001,2]
[426536926,1782564229000,5077.83949787,0.0001,2]
[426536918,1782564229000,10000.0,0.0001,2]
[426536923,1782564229000,10000.0,0.0001,2]
[426536921,1782564229000,10000.0,0.0001,2]
[426536919,1782564229000,10000.0,0.0001,2]
[426536922,1782564229000,10000.0,0.0001,2]
[426536924,1782564229000,10000.0,0.0001,2]
[426536925,1782564229000,10000.0,0.0001,2]
[426536920,1782564229000,10000.0,0.0001,2]
[426536930,1782564250000,244.3971161,0.0001,2]
[426536929,1782564250000,721.52937168,0.0001,2]
[426536927,1782564250000,4922.16050213,0.0001,2]
[426536928,1782564250000,802.28108985,0.0001,2]
[426536931,1782564250000,209.37325392,0.0001,2]
[426536933,1782564257000,2424.54674712,0.0001,2]
[426536932,1782564257000,4195.80036832,0.0001,2]
[426536934,1782564398000,500.0,0.00037425,120]
[426536935,1782564398000,500.0,0.00037425,120]
[426536936,1782564399000,500.0,0.00037425,120]
[426536938,1782564399000,548.14941671,0.00037425,120]
[426536937,1782564399000,500.0,0.00037425,120]
[426536939,1782564439000,1500.0,0.000118,4]
[426536940,1782564441000,3000.0,0.000119,4]
[426536962,1782564631000,-236.65,0.00011683,2]
[426536965,1782564631000,-151.0,0.00011688,2]
[426536960,1782564631000,-292.59972504,0.00011624,2]
[426536961,1782564631000,-150.0,0.00011672,2]
[426536959,1782564631000,-166.66,0.00011604,2]
[426536958,1782564631000,-3059.49,0.00011567,2]
[426536956,1782564631000,-781.360721,0.00011332,2]
[426536957,1782564631000,-166.66,0.00011389,2]
[426536955,1782564631000,-150.0,0.00011268,2]
[426536953,1782564631000,-1833.50929792,0.00011221,2]
[426536954,1782564631000,-570.77622406,0.00011221,2]
[426536952,1782564631000,-354.42447802,0.00011221,2]
[426536950,1782564631000,-155.7,0.00011159,2]
[426536948,1782564631000,-98.93552198,0.00011062,2]
[426536949,1782564631000,-299.71,0.00011133,2]
[426536947,1782564631000,-77.11447802,0.00011062,2]
[426536964,1782564631000,-151.0,0.00011688,2]
[426536946,1782564631000,-166.66,0.00010959,2]
[426536951,1782564631000,-166.66,0.00011174,2]
[426536967,1782564631000,-153.0,0.00011688,2]
[426536945,1782564631000,-255.48442061,0.00010767,2]
[426536963,1782564631000,-150.0,0.00011687,2]
[426536968,1782564631000,-151.0,0.00011688,2]
[426536996,1782564631000,-151.0,0.00011688,2]
[426536994,1782564631000,-153.0,0.00011688,2]
[426536995,1782564631000,-152.0,0.00011688,2]
[426536992,1782564631000,-153.0,0.00011688,2]
[426536991,1782564631000,-150.0,0.00011688,2]
[426536989,1782564631000,-14.34848379,0.00011688,2]
[426536985,1782564631000,-141.87434998,0.00011688,2]
[426536982,1782564631000,-9.12565002,0.00011688,2]
[426536980,1782564631000,-151.0,0.00011688,2]
[426536993,1782564631000,-150.0,0.00011688,2]
[426536976,1782564631000,-6.17120261,0.00011688,2]
[426536987,1782564631000,-136.65151621,0.00011688,2]
[426536977,1782564631000,-151.0,0.00011688,2]
[426536974,1782564631000,-152.0,0.00011688,2]
[426536975,1782564631000,-143.82879739,0.00011688,2]
[426536970,1782564631000,-150.0,0.00011688,2]
[426536972,1782564631000,-150.0,0.00011688,2]
[426536966,1782564631000,-152.0,0.00011688,2]
[426536969,1782564631000,-151.0,0.00011688,2]
[426536978,1782564631000,-150.0,0.00011688,2]
[426537037,1782564632000,-1235.92611297,0.00012424,2]
[426537035,1782564632000,-1235.92611297,0.00012424,2]
[426537036,1782564632000,-1235.92611297,0.00012424,2]
[426537039,1782564632000,-1235.92611297,0.00012424,2]
[426537034,1782564632000,-1235.92611297,0.00012424,2]
[426537027,1782564632000,-1235.92611297,0.00012424,2]
[426537028,1782564632000,-1235.92611297,0.00012424,2]
[426537031,1782564632000,-1235.92611297,0.00012424,2]
[426537029,1782564632000,-1235.92611297,0.00012424,2]
[426537038,1782564632000,-1235.92611297,0.00012424,2]
[426537030,1782564632000,-1235.92611297,0.00012424,2]
[426537033,1782564632000,-1235.92611297,0.00012424,2]
[426537049,1782564632000,-1235.92611297,0.00012424,2]
[426537032,1782564632000,-1235.92611297,0.00012424,2]
[426537043,1782564632000,-1235.92611297,0.00012424,2]
[426537044,1782564632000,-1235.92611297,0.00012424,2]
[426537041,1782564632000,-1235.92611297,0.00012424,2]
[426537042,1782564632000,-1235.92611297,0.00012424,2]
[426537046,1782564632000,-1235.92611297,0.00012424,2]
[426537048,1782564632000,-1235.92611297,0.00012424,2]
[426537045,1782564632000,-1235.92611297,0.00012424,2]
[426537047,1782564632000,-1235.92611297,0.00012424,2]
[426537026,1782564632000,-1235.92611297,0.00012424,2]
[426537050,1782564632000,-1235.92611297,0.00012424,2]
[426537040,1782564632000,-1235.92611297,0.00012424,2]
[426537022,1782564632000,-1235.92611297,0.00012424,2]
[426537011,1782564632000,-500.0,0.00012424,2]
[426537024,1782564632000,-1235.92611297,0.00012424,2]
[426536997,1782564632000,-151.0,0.00011688,2]
[426537001,1782564632000,-556.18,0.00011893,2]
[426536998,1782564632000,-271.34,0.00011688,2]
[426537000,1782564632000,-150.0,0.00011834,2]
[426536999,1782564632000,-166.66,0.00011819,2]
[426537002,1782564632000,-170.39,0.00012001,2]
[426537003,1782564632000,-223.88,0.00012001,2]
[426537004,1782564632000,-166.66,0.00012035,2]
[426537005,1782564632000,-2500.0,0.00012325,2]
[426537008,1782564632000,-246.67,0.00012329,2]
[426537007,1782564632000,-854.94206224,0.00012325,2]
[426537009,1782564632000,-214.96618774,0.00012415,2]
[426537010,1782564632000,-1001.38905256,0.00012424,2]
[426537012,1782564632000,-500.0,0.00012424,2]
[426537013,1782564632000,-267.94100501,0.00012424,2]
[426537014,1782564632000,-301.25401984,0.00012424,2]
[426537051,1782564632000,-1235.92611297,0.00012424,2]
[426537016,1782564632000,-387.55870351,0.00012424,2]
[426537015,1782564632000,-500.0,0.00012424,2]
[426537017,1782564632000,-1235.92611297,0.00012424,2]
[426537018,1782564632000,-1235.92611297,0.00012424,2]
[426537020,1782564632000,-1235.92611297,0.00012424,2]
[426537019,1782564632000,-1235.92611297,0.00012424,2]
[426537021,1782564632000,-1235.92611297,0.00012424,2]
[426537025,1782564632000,-1235.92611297,0.00012424,2]
[426537023,1782564632000,-1235.92611297,0.00012424,2]
[426537053,1782564632000,-1235.92611297,0.00012424,2]
[426537006,1782564632000,-13199.23873915,0.00012325,2]
[426537055,1782564632000,-1235.92611297,0.00012424,2]
[426537084,1782564632000,-1219.97867926,0.00012424,2]
[426537092,1782564632000,-1219.97867926,0.00012424,2]
[426537085,1782564632000,-1219.97867926,0.00012424,2]
[426537088,1782564632000,-1219.97867926,0.00012424,2]
[426537086,1782564632000,-1219.97867926,0.00012424,2]
[426537087,1782564632000,-1219.97867926,0.00012424,2]
[426537091,1782564632000,-1219.97867926,0.00012424,2]
[426537089,1782564632000,-1219.97867926,0.00012424,2]
[426537096,1782564632000,-189.78703908,0.00012424,2]
[426537093,1782564632000,-1219.97867926,0.00012424,2]
[426537094,1782564632000,-1219.97867926,0.00012424,2]
[426537095,1782564632000,-1219.97867926,0.00012424,2]
[426537098,1782564632000,-1219.97867926,0.00012424,2]
[426537101,1782564632000,-1219.97867926,0.00012424,2]
[426537103,1782564632000,-1219.97867926,0.00012424,2]
[426537100,1782564632000,-1219.97867926,0.00012424,2]
[426537108,1782564632000,-500.0,0.00012424,2]
[426537099,1782564632000,-1219.97867926,0.00012424,2]
[426537102,1782564632000,-1219.97867926,0.00012424,2]
[426537097,1782564632000,-1030.19164018,0.00012424,2]
[426537105,1782564632000,-1219.97867926,0.00012424,2]
[426537104,1782564632000,-1219.97867926,0.00012424,2]
[426537107,1782564632000,-1219.97867926,0.00012424,2]
[426537109,1782564632000,-500.0,0.00012424,2]
[426537052,1782564632000,-1235.92611297,0.00012424,2]
[426537090,1782564632000,-1219.97867926,0.00012424,2]
[426537081,1782564632000,-1219.97867926,0.00012424,2]
[426537106,1782564632000,-1219.97867926,0.00012424,2]
[426537083,1782564632000,-1219.97867926,0.00012424,2]
[426537056,1782564632000,-1235.92611297,0.00012424,2]
[426537057,1782564632000,-1235.92611297,0.00012424,2]
[426537054,1782564632000,-1235.92611297,0.00012424,2]
[426537058,1782564632000,-1235.92611297,0.00012424,2]
[426537061,1782564632000,-1235.92611297,0.00012424,2]
[426537059,1782564632000,-1235.92611297,0.00012424,2]
[426537060,1782564632000,-1235.92611297,0.00012424,2]
[426537068,1782564632000,-1235.92611297,0.00012424,2]
[426537082,1782564632000,-1219.97867926,0.00012424,2]
[426537067,1782564632000,-1235.92611297,0.00012424,2]
[426537065,1782564632000,-1235.92611297,0.00012424,2]
[426537069,1782564632000,-1235.92611297,0.00012424,2]
[426537064,1782564632000,-1235.92611297,0.00012424,2]
[426537063,1782564632000,-1235.92611297,0.00012424,2]
[426537066,1782564632000,-1235.92611297,0.00012424,2]
[426537062,1782564632000,-1235.92611297,0.00012424,2]
[426537078,1782564632000,-1219.97867926,0.00012424,2]
[426537079,1782564632000,-1219.97867926,0.00012424,2]
[426537076,1782564632000,-201.19732131,0.00012424,2]
[426537080,1782564632000,-1219.97867926,0.00012424,2]
[426537077,1782564632000,-236.04928457,0.00012424,2]
[426537075,1782564632000,-1235.92611297,0.00012424,2]
[426537070,1782564632000,-1235.92611297,0.00012424,2]
[426537072,1782564632000,-1235.92611297,0.00012424,2]
[426537073,1782564632000,-1235.92611297,0.00012424,2]
[426537071,1782564632000,-1235.92611297,0.00012424,2]
[426537074,1782564632000,-1235.92611297,0.00012424,2]
[426537118,1782564633000,-529.60735185,0.00012425,2]
[426537117,1782564633000,-5020.9170931,0.00012425,2]
[426537111,1782564633000,-500.0,0.00012424,2]
[426537112,1782564633000,-191.05055085,0.00012424,2]
[426537110,1782564633000,-210.87781388,0.00012424,2]
[426537113,1782564633000,-310.05138709,0.00012424,2]
[426537115,1782564633000,-1219.97867929,0.00012424,2]
[426537114,1782564633000,-1219.9786793,0.00012424,2]
[426537116,1782564633000,-465.33554317,0.00012424,2]
[426537121,1782564637000,-938793.03781609,0.00012425,2]
[426537119,1782564637000,-799.99,0.00012425,2]
[426537122,1782564637000,-10998.04526463,0.00012425,2]
[426537120,1782564637000,-8949.7120357,0.00012425,2]
[426537126,1782564638000,-690.92725002,0.00012425,2]
[426537125,1782564638000,-4478.58728033,0.00012425,2]
[426537124,1782564638000,-1353.49513503,0.00012425,2]
[426537123,1782564638000,-1148.53642385,0.00012425,2]
[426537136,1782564640000,-24792.77188051,0.00012425,2]
[426537135,1782564640000,-599.98519936,0.00011625,2]
[426537141,1782564642000,-523.85482444,0.00011625,2]
[426537142,1782564642000,-2485.82807576,0.00012425,2]
[426537159,1782564643000,-700.0,0.00012488,2]
[426537160,1782564643000,-700.0,0.00012488,2]
[426537161,1782564643000,-700.0,0.00012488,2]
[426537162,1782564643000,-700.0,0.00012488,2]
[426537163,1782564643000,-700.0,0.00012488,2]
[426537171,1782564643000,-1000.0,0.00012488,2]
[426537166,1782564643000,-700.0,0.00012488,2]
[426537170,1782564643000,-1000.0,0.00012488,2]
[426537168,1782564643000,-700.0,0.00012488,2]
[426537154,1782564643000,-152.0,0.00012488,2]
[426537169,1782564643000,-700.0,0.00012488,2]
[426537167,1782564643000,-700.0,0.00012488,2]
[426537164,1782564643000,-700.0,0.00012488,2]
[426537158,1782564643000,-518.35596454,0.00012488,2]
[426537151,1782564643000,-152.0,0.00012488,2]
[426537156,1782564643000,-261.92282077,0.00012488,2]
[426537155,1782564643000,-152.0,0.00012488,2]
[426537153,1782564643000,-240.76887144,0.00012488,2]
[426537177,1782564643000,-1000.0,0.00012488,2]
[426537149,1782564643000,-152.0,0.00012488,2]
[426537146,1782564643000,-218.32490188,0.00012425,2]
[426537148,1782564643000,-214.35956654,0.00012441,2]
[426537150,1782564643000,-152.0,0.00012488,2]
[426537152,1782564643000,-152.0,0.00012488,2]
[426537147,1782564643000,-4877.78284351,0.00012426,2]
[426537143,1782564643000,-16556.15095251,0.00012425,2]
[426537144,1782564643000,-483402.39344062,0.00012425,2]
[426537145,1782564643000,-330.9519,0.00012425,2]
[426537157,1782564643000,-500.0,0.00012488,2]
[426537176,1782564643000,-1000.0,0.00012488,2]
[426537196,1782564643000,-1000.0,0.00012488,2]
[426537173,1782564643000,-1000.0,0.00012488,2]
[426537204,1782564643000,-1209447.07790263,0.00012526,2]
[426537205,1782564643000,-260604.23483529,0.00012526,2]
[426537203,1782564643000,-1296.01217332,0.00012526,2]
[426537202,1782564643000,-179.86777098,0.00012525,2]
[426537201,1782564643000,-152.0,0.00012488,2]
[426537200,1782564643000,-152.0,0.00012488,2]
[426537198,1782564643000,-152.0,0.00012488,2]
[426537199,1782564643000,-152.0,0.00012488,2]
[426537195,1782564643000,-1000.0,0.00012488,2]
[426537194,1782564643000,-1000.0,0.00012488,2]
[426537197,1782564643000,-600.02493511,0.00012488,2]
[426537192,1782564643000,-1000.0,0.00012488,2]
[426537193,1782564643000,-1000.0,0.00012488,2]
[426537172,1782564643000,-1000.0,0.00012488,2]
[426537188,1782564643000,-1000.0,0.00012488,2]
[426537187,1782564643000,-1000.0,0.00012488,2]
[426537178,1782564643000,-1000.0,0.00012488,2]
[426537175,1782564643000,-1000.0,0.00012488,2]
[426537174,1782564643000,-1000.0,0.00012488,2]
[426537180,1782564643000,-1000.0,0.00012488,2]
[426537179,1782564643000,-1000.0,0.00012488,2]
[426537190,1782564643000,-1000.0,0.00012488,2]
[426537182,1782564643000,-1000.0,0.00012488,2]
[426537181,1782564643000,-1000.0,0.00012488,2]
[426537184,1782564643000,-1000.0,0.00012488,2]
[426537186,1782564643000,-1000.0,0.00012488,2]
[426537185,1782564643000,-1000.0,0.00012488,2]
[426537189,1782564643000,-1000.0,0.00012488,2]
[426537191,1782564643000,-1000.0,0.00012488,2]
[426537183,1782564643000,-1000.0,0.00012488,2]
[426537207,1782564645000,-28652.67508876,0.00012526,2]
[426537206,1782564645000,-264.22865966,0.00012441,2]
[426537210,1782564645000,-29130.1587888,0.00012541,2]
[426537209,1782564645000,-22807.611892,0.00012541,2]
[426537211,1782564645000,-159886.56160923,0.00012541,2]
[426537208,1782564645000,-186942.3516112,0.00012541,2]
[426537214,1782564646000,-2173.69019255,0.00012541,2]
[426537213,1782564646000,-12836.74043968,0.00012541,2]
[426537212,1782564646000,-22922.46399627,0.00012541,2]
[426537246,1782564877000,1500.15,0.00037425,120]
[426537251,1782564892000,500.0,0.00037425,120]
[426537250,1782564892000,500.0,0.00037425,120]
[426537249,1782564892000,500.0,0.00037425,120]
[426537254,1782564893000,425.324965,0.00037425,120]
[426537253,1782564893000,500.0,0.00037425,120]
[426537252,1782564893000,500.0,0.00037425,120]
[426537260,1782564915000,174.47,9.308e-05,2]
[426537267,1782565067000,1227.60205301,9.04e-05,2]
[426537268,1782565067000,6528.16438133,9.04e-05,2]
[426537278,1782565126000,996.49325095,0.00012324,3]
[426537293,1782565649000,1300.0,0.000116,4]
[426537294,1782565651000,2700.0,0.000117,4]
[426537295,1782565653000,4100.0,0.000118,4]
[426537296,1782565655000,5500.0,0.000119,4]
[426537303,1782565831000,-166.66,0.00010959,2]
[426537304,1782565831000,-150.0,0.00011045,2]
[426537305,1782565831000,-444.94,0.00011127,2]
[426537306,1782565831000,-70.62856812,0.00011179,2]
[426537312,1782565831000,-176.05,0.00011256,2]
[426537308,1782565831000,-211.05724806,0.0001122,2]
[426537309,1782565831000,-311.91275194,0.0001122,2]
[426537311,1782565831000,-115.85825194,0.0001124,2]
[426537310,1782565831000,-41.98174806,0.0001124,2]
[426537307,1782565831000,-96.03143188,0.00011179,2]
[426537314,1782565831000,-166.66,0.00011399,2]
[426537319,1782565831000,-522.97,0.00011781,2]
[426537322,1782565831000,-1230.51350785,0.00011827,2]
[426537321,1782565831000,-697.523145,0.00011827,2]
[426537320,1782565831000,-264.3118466,0.00011827,2]
[426537313,1782565831000,-184.50513272,0.00011277,2]
[426537316,1782565831000,-340.57,0.00011507,2]
[426537318,1782565831000,-166.66,0.00011619,2]
[426537315,1782565831000,-522.97,0.00011501,2]
[426537317,1782565831000,-210.33258619,0.00011524,2]
[426537342,1782565832000,-500.0,0.00012022,2]
[426537347,1782565832000,-500.0,0.00012022,2]
[426537348,1782565832000,-500.0,0.00012022,2]
[426537350,1782565832000,-500.0,0.00012022,2]
[426537349,1782565832000,-500.0,0.00012022,2]
[426537351,1782565832000,-168.36295812,0.00012022,2]
[426537353,1782565832000,-500.0,0.00012022,2]
[426537354,1782565832000,-500.0,0.00012022,2]
[426537357,1782565832000,-500.0,0.00012022,2]
[426537352,1782565832000,-500.0,0.00012022,2]
[426537355,1782565832000,-500.0,0.00012022,2]
[426537358,1782565832000,-500.0,0.00012022,2]
[426537360,1782565832000,-500.0,0.00012022,2]
[426537359,1782565832000,-500.0,0.00012022,2]
[426537361,1782565832000,-500.0,0.00012022,2]
[426537356,1782565832000,-500.0,0.00012022,2]
[426537339,1782565832000,-500.0,0.00012022,2]
[426537343,1782565832000,-500.0,0.00012022,2]
[426537344,1782565832000,-500.0,0.00012022,2]
[426537323,1782565832000,-166.66,0.00011839,2]
[426537325,1782565832000,-641.52174612,0.00011924,2]
[426537328,1782565832000,-621.29109245,0.00012022,2]
[426537331,1782565832000,-500.0,0.00012022,2]
[426537327,1782565832000,-150.0,0.00012022,2]
[426537326,1782565832000,-197.96187719,0.00012013,2]
[426537329,1782565832000,-500.0,0.00012022,2]
[426537363,1782565832000,-500.0,0.00012022,2]
[426537330,1782565832000,-500.0,0.00012022,2]
[426537334,1782565832000,-500.0,0.00012022,2]
[426537335,1782565832000,-500.0,0.00012022,2]
[426537333,1782565832000,-500.0,0.00012022,2]
[426537338,1782565832000,-500.0,0.00012022,2]
[426537340,1782565832000,-500.0,0.00012022,2]
[426537345,1782565832000,-500.0,0.00012022,2]
[426537336,1782565832000,-500.0,0.00012022,2]
[426537332,1782565832000,-500.0,0.00012022,2]
[426537364,1782565832000,-500.0,0.00012022,2]
[426537341,1782565832000,-500.0,0.00012022,2]
[426537365,1782565832000,-500.0,0.00012022,2]
[426537388,1782565832000,-500.0,0.00012022,2]
[426537385,1782565832000,-500.0,0.00012022,2]
[426537389,1782565832000,-500.0,0.00012022,2]
[426537391,1782565832000,-500.0,0.00012022,2]
[426537390,1782565832000,-500.0,0.00012022,2]
[426537392,1782565832000,-500.0,0.00012022,2]
[426537394,1782565832000,-500.0,0.00012022,2]
[426537393,1782565832000,-500.0,0.00012022,2]
[426537400,1782565832000,-7840.75726329,0.00012023,2]
[426537399,1782565832000,-81665.65156153,0.00012023,2]
[426537398,1782565832000,-106375.97056647,0.00012023,2]
[426537395,1782565832000,-500.0,0.00012022,2]
[426537397,1782565832000,-897.0,0.00012023,2]
[426537396,1782565832000,-347.61446972,0.00012022,2]
[426537402,1782565832000,-286.98,0.00012023,2]
[426537401,1782565832000,-1929.27379233,0.00012023,2]
[426537362,1782565832000,-500.0,0.00012022,2]
[426537386,1782565832000,-500.0,0.00012022,2]
[426537387,1782565832000,-500.0,0.00012022,2]
[426537346,1782565832000,-500.0,0.00012022,2]
[426537382,1782565832000,-500.0,0.00012022,2]
[426537369,1782565832000,-500.0,0.00012022,2]
[426537367,1782565832000,-500.0,0.00012022,2]
[426537368,1782565832000,-500.0,0.00012022,2]
[426537372,1782565832000,-500.0,0.00012022,2]
[426537371,1782565832000,-500.0,0.00012022,2]
[426537370,1782565832000,-500.0,0.00012022,2]
[426537374,1782565832000,-500.0,0.00012022,2]
[426537373,1782565832000,-500.0,0.00012022,2]
[426537377,1782565832000,-500.0,0.00012022,2]
[426537376,1782565832000,-500.0,0.00012022,2]
[426537379,1782565832000,-500.0,0.00012022,2]
[426537375,1782565832000,-500.0,0.00012022,2]
[426537378,1782565832000,-500.0,0.00012022,2]
[426537381,1782565832000,-500.0,0.00012022,2]
[426537384,1782565832000,-500.0,0.00012022,2]
[426537380,1782565832000,-500.0,0.00012022,2]
[426537383,1782565832000,-400.0,0.00012022,2]
[426537366,1782565832000,-500.0,0.00012022,2]
[426537411,1782565837000,-10693.17526463,0.00012023,2]
[426537410,1782565837000,-304.87,0.00011507,2]
[426537412,1782565837000,-1148.53642385,0.00012023,2]
[426537444,1782565840000,-827042.56125158,0.00012023,2]
[426537443,1782565840000,-126.5625308,0.00011924,2]
[426537442,1782565840000,-445.40166449,0.00011924,2]
[426537454,1782565842000,-736.40734751,0.00012023,2]
[426537502,1782565846000,-3354.96216365,0.00012023,2]
[426537501,1782565846000,-2693.95139814,0.00012023,2]
[426537500,1782565846000,-2000.0,0.00012023,2]
[426537499,1782565846000,-375.58860186,0.00012023,2]
[426537504,1782565962000,179.36931728,0.00011924,7]
[426537505,1782565963000,179.36931728,0.00012162,7]
[426537508,1782566364000,500.0,0.00037407,120]
[426537510,1782566365000,500.0,0.00037407,120]
[426537509,1782566365000,500.0,0.00037407,120]
[426537512,1782566366000,580.15980951,0.00037407,120]
[426537511,1782566366000,500.0,0.00037407,120]
[426537515,1782566554000,500.0,0.00037407,120]
[426537528,1782566823000,307.01,9.885e-05,2]
[426537529,1782566824000,307.01,9.89e-05,2]
[426537530,1782566824000,307.01,9.904e-05,2]
[426537531,1782566824000,307.01,9.927e-05,2]